[Event "Titled Tuesday Blitz November 07 Early 2023"]
[White "Khismatullin, Denis"]
[Black "Manukyan, Sargis A."]
[WhiteFideId "4142578"]
[BlackFideId "13303970"]
[WhiteElo "2926"]
[BlackElo "2614"]
[Result "1-0"]
[Round "2"]
[TimeControl "180+1"]
[Date "2023.11.07"]
[WhiteClock "0:00:56"]
[BlackClock "0:00:20"]
[Board "26"]

1. e4 {[%clk 0:03:00]}  c5 {[%clk 0:02:59]} 2. Nf3 {[%clk 0:03:00]}  d6 {[%clk 0:02:59]} 3. d4 {[%clk 0:02:59]}  cxd4 {[%clk 0:03:00]} 4. Nxd4 {[%clk 0:02:59]}  Nf6 {[%clk 0:03:00]} 5. Nc3 {[%clk 0:02:59]}  g6 {[%clk 0:03:01]} 6. Be2 {[%clk 0:02:58]}  Bg7 {[%clk 0:03:01]} 7. O-O {[%clk 0:02:58]}  O-O {[%clk 0:03:02]} 8. Be3 {[%clk 0:02:58]}  Nc6 {[%clk 0:03:02]} 9. Qd2 {[%clk 0:02:58]}  d5 {[%clk 0:03:00]} 10. exd5 {[%clk 0:02:41]}  Nxd5 {[%clk 0:02:59]} 11. Nxc6 {[%clk 0:02:40]}  bxc6 {[%clk 0:02:57]} 12. Rfd1 {[%clk 0:02:41]}  Be6 {[%clk 0:02:30]} 13. Nxd5 {[%clk 0:02:33]}  Bxd5 {[%clk 0:02:02]} 14. c3 {[%clk 0:02:30]}  Qc7 {[%clk 0:02:01]} 15. Bc5 {[%clk 0:02:24]}  Rfd8 {[%clk 0:01:58]} 16. Qe3 {[%clk 0:02:22]}  e5 {[%clk 0:01:45]} 17. b4 {[%clk 0:02:22]}  Rd7 {[%clk 0:01:40]} 18. c4 {[%clk 0:02:15]}  Be6 {[%clk 0:01:35]} 19. Rxd7 {[%clk 0:02:16]}  Bxd7 {[%clk 0:01:31]} 20. Rd1 {[%clk 0:02:14]}  Be6 {[%clk 0:01:23]} 21. a4 {[%clk 0:02:11]}  Bf8 {[%clk 0:01:14]} 22. a5 {[%clk 0:02:08]}  Bxc5 {[%clk 0:01:08]} 23. Qxc5 {[%clk 0:02:08]}  Rd8 {[%clk 0:00:58]} 24. Rxd8+ {[%clk 0:01:47]}  Qxd8 {[%clk 0:00:58]} 25. Qxa7 {[%clk 0:01:42]}  Qd2 {[%clk 0:00:58]} 26. Qb8+ {[%clk 0:01:38]}  Kg7 {[%clk 0:00:54]} 27. Qxe5+ {[%clk 0:01:38]}  f6 {[%clk 0:00:50]} 28. Qc7+ {[%clk 0:01:23]}  Kh6 {[%clk 0:00:50]} 29. Bf1 {[%clk 0:01:22]}  Qxb4 {[%clk 0:00:44]} 30. a6 {[%clk 0:01:21]}  Qa4 {[%clk 0:00:31]} 31. a7 {[%clk 0:01:19]}  Qa1 {[%clk 0:00:25]} 32. Qb8 {[%clk 0:01:06]}  Bxc4 {[%clk 0:00:23]} 33. Qf4+ {[%clk 0:01:06]}  Kg7 {[%clk 0:00:23]} 34. Qxc4 {[%clk 0:01:06]}  Qxa7 {[%clk 0:00:23]} 35. Qxc6 {[%clk 0:01:07]}  Qe7 {[%clk 0:00:24]} 36. g3 {[%clk 0:01:05]}  h5 {[%clk 0:00:24]} 37. Bc4 {[%clk 0:01:04]}  g5 {[%clk 0:00:21]} 38. Qe6 {[%clk 0:01:04]}  Qa7 {[%clk 0:00:21]} 39. Qg8+ {[%clk 0:01:02]}  Kh6 {[%clk 0:00:20]} 40. Qh8+ {[%clk 0:01:01]}  Kg6 {[%clk 0:00:20]} 41. Bd3+ {[%clk 0:01:01]}  f5 {[%clk 0:00:20]} 42. Qg8+ {[%clk 0:01:00]}  Kh6 {[%clk 0:00:17]} 43. Qf8+ {[%clk 0:01:00]}  Qg7 {[%clk 0:00:14]} 44. Qxg7+ {[%clk 0:00:58]}  Kxg7 {[%clk 0:00:15]} 45. Bxf5 {[%clk 0:00:57]}  g4 {[%clk 0:00:16]} 46. h3 {[%clk 0:00:56]}  Kf6 {[%clk 0:00:15]} 47. hxg4 {[%clk 0:00:55]}  h4 {[%clk 0:00:16]} 48. gxh4 {[%clk 0:00:55]}  Ke5 {[%clk 0:00:17]} 49. Kg2 {[%clk 0:00:55]}  Kf6 {[%clk 0:00:18]} 50. h5 {[%clk 0:00:55]}  Kg7 {[%clk 0:00:19]} 51. Kg3 {[%clk 0:00:55]}  Kh6 {[%clk 0:00:20]} 52. Kh4 {[%clk 0:00:55]}  Kg7 {[%clk 0:00:21]} 53. g5 {[%clk 0:00:56]}  Kh8 {[%clk 0:00:21]} 54. h6 {[%clk 0:00:56]}  Kg8 {[%clk 0:00:21]} 55. g6 {[%clk 0:00:56]}  Kh8 {[%clk 0:00:20]} 56. g7+ {[%clk 0:00:56]} 1-0


[Site "https://www.chess.com"]

[Event "Titled Tuesday Blitz November 07 Early 2023"]
[White "Aravindh, Chithambaram VR."]
[Black "Tregubov, Pavel V."]
[WhiteFideId "5072786"]
[BlackFideId "4115341"]
[WhiteElo "2910"]
[BlackElo "2611"]
[Result "1-0"]
[Round "2"]
[TimeControl "180+1"]
[Date "2023.11.07"]
[WhiteClock "0:01:43"]
[BlackClock "0:01:28"]
[Board "28"]

1. b3 {[%clk 0:03:00]}  d5 {[%clk 0:02:58]} 2. Bb2 {[%clk 0:03:00]}  Nf6 {[%clk 0:02:58]} 3. Nf3 {[%clk 0:03:00]}  g6 {[%clk 0:02:57]} 4. e3 {[%clk 0:02:59]}  Bg7 {[%clk 0:02:57]} 5. Be2 {[%clk 0:02:59]}  O-O {[%clk 0:02:57]} 6. O-O {[%clk 0:03:00]}  c5 {[%clk 0:02:56]} 7. c4 {[%clk 0:02:52]}  Nc6 {[%clk 0:02:57]} 8. d4 {[%clk 0:02:50]}  cxd4 {[%clk 0:02:53]} 9. Nxd4 {[%clk 0:02:51]}  Nxd4 {[%clk 0:02:44]} 10. Bxd4 {[%clk 0:02:52]}  dxc4 {[%clk 0:02:37]} 11. Bxc4 {[%clk 0:02:53]}  Bd7 {[%clk 0:02:36]} 12. Nd2 {[%clk 0:02:50]}  Bc6 {[%clk 0:02:35]} 13. Nf3 {[%clk 0:02:49]}  Nd7 {[%clk 0:02:14]} 14. Bxg7 {[%clk 0:02:19]}  Kxg7 {[%clk 0:02:14]} 15. Nd4 {[%clk 0:02:13]}  Ne5 {[%clk 0:02:09]} 16. Nxc6 {[%clk 0:02:12]}  Nxc6 {[%clk 0:02:10]} 17. Qf3 {[%clk 0:01:59]}  Qb6 {[%clk 0:02:07]} 18. Bd5 {[%clk 0:01:51]}  Rac8 {[%clk 0:01:59]} 19. Rac1 {[%clk 0:01:50]}  Nb4 {[%clk 0:01:49]} 20. Rxc8 {[%clk 0:01:49]}  Rxc8 {[%clk 0:01:48]} 21. Qxf7+ {[%clk 0:01:49]}  Kh8 {[%clk 0:01:28]} 22. Be6 {[%clk 0:01:43]} 1-0


[Site "https://www.chess.com"]

[Event "Titled Tuesday Blitz November 07 Early 2023"]
[White "Perdomo, Carlos Andres"]
[Black "Steinberg, Nitzan"]
[WhiteFideId "4400852"]
[BlackFideId "2801795"]
[WhiteElo "2603"]
[BlackElo "2883"]
[Result "0-1"]
[Round "2"]
[TimeControl "180+1"]
[Date "2023.11.07"]
[WhiteClock "0:00:22"]
[BlackClock "0:00:13"]
[Board "36"]

1. c4 {[%clk 0:03:00]}  Nf6 {[%clk 0:02:58]} 2. Nc3 {[%clk 0:03:00]}  g6 {[%clk 0:02:58]} 3. Nf3 {[%clk 0:03:00]}  Bg7 {[%clk 0:02:58]} 4. g3 {[%clk 0:02:56]}  O-O {[%clk 0:02:58]} 5. Bg2 {[%clk 0:02:56]}  d6 {[%clk 0:02:58]} 6. d4 {[%clk 0:02:52]}  Nbd7 {[%clk 0:02:57]} 7. O-O {[%clk 0:02:27]}  e5 {[%clk 0:02:57]} 8. dxe5 {[%clk 0:02:20]}  dxe5 {[%clk 0:02:56]} 9. Qc2 {[%clk 0:02:17]}  c6 {[%clk 0:02:52]} 10. Rd1 {[%clk 0:02:16]}  Qc7 {[%clk 0:02:40]} 11. Ng5 {[%clk 0:02:08]}  Nc5 {[%clk 0:02:36]} 12. b4 {[%clk 0:02:03]}  Ne6 {[%clk 0:02:33]} 13. Nxe6 {[%clk 0:01:53]}  Bxe6 {[%clk 0:02:33]} 14. Ne4 {[%clk 0:01:47]}  Nxe4 {[%clk 0:02:30]} 15. Bxe4 {[%clk 0:01:47]}  f5 {[%clk 0:02:29]} 16. Bg2 {[%clk 0:01:45]}  e4 {[%clk 0:02:27]} 17. Rb1 {[%clk 0:01:44]}  Rad8 {[%clk 0:02:25]} 18. Bf4 {[%clk 0:01:39]}  Be5 {[%clk 0:02:22]} 19. Bxe5 {[%clk 0:01:30]}  Qxe5 {[%clk 0:02:23]} 20. e3 {[%clk 0:01:29]}  Kg7 {[%clk 0:02:01]} 21. h4 {[%clk 0:01:27]}  h6 {[%clk 0:01:59]} 22. Bf1 {[%clk 0:01:24]}  g5 {[%clk 0:01:57]} 23. hxg5 {[%clk 0:01:23]}  hxg5 {[%clk 0:01:58]} 24. Rxd8 {[%clk 0:01:19]}  Rxd8 {[%clk 0:01:58]} 25. Rd1 {[%clk 0:01:16]}  Rh8 {[%clk 0:01:40]} 26. Qd2 {[%clk 0:01:11]}  Kf6 {[%clk 0:01:36]} 27. Qd4 {[%clk 0:00:56]}  Qxd4 {[%clk 0:01:33]} 28. Rxd4 {[%clk 0:00:57]}  Ke5 {[%clk 0:01:32]} 29. a3 {[%clk 0:00:54]}  a5 {[%clk 0:01:28]} 30. c5 {[%clk 0:00:52]}  Ra8 {[%clk 0:01:22]} 31. Rd6 {[%clk 0:00:28]}  axb4 {[%clk 0:00:58]} 32. axb4 {[%clk 0:00:29]}  Ra1 {[%clk 0:00:47]} 33. Kg2 {[%clk 0:00:29]}  Rc1 {[%clk 0:00:44]} 34. Rd8 {[%clk 0:00:27]}  Rb1 {[%clk 0:00:38]} 35. b5 {[%clk 0:00:21]}  cxb5 {[%clk 0:00:37]} 36. Rb8 {[%clk 0:00:19]}  Bd5 {[%clk 0:00:34]} 37. Re8+ {[%clk 0:00:19]}  Kf6 {[%clk 0:00:34]} 38. Rf8+ {[%clk 0:00:20]}  Ke6 {[%clk 0:00:27]} 39. Re8+ {[%clk 0:00:19]}  Kf6 {[%clk 0:00:22]} 40. Rd8 {[%clk 0:00:19]}  Bc6 {[%clk 0:00:22]} 41. Rd6+ {[%clk 0:00:20]}  Ke5 {[%clk 0:00:20]} 42. Rg6 {[%clk 0:00:20]}  g4 {[%clk 0:00:20]} 43. Rg8 {[%clk 0:00:20]}  Rc1 {[%clk 0:00:20]} 44. Rd8 {[%clk 0:00:19]}  Rxc5 {[%clk 0:00:20]} 45. Rd4 {[%clk 0:00:20]}  Rc2 {[%clk 0:00:19]} 46. Rb4 {[%clk 0:00:20]}  Rc5 {[%clk 0:00:18]} 47. Rd4 {[%clk 0:00:21]}  Bd5 {[%clk 0:00:18]} 48. Rb4 {[%clk 0:00:21]}  Bc6 {[%clk 0:00:17]} 49. Be2 {[%clk 0:00:21]}  Kd6 {[%clk 0:00:16]} 50. Rd4+ {[%clk 0:00:22]}  Bd5 {[%clk 0:00:16]} 51. Rb4 {[%clk 0:00:22]}  Kc6 {[%clk 0:00:16]} 52. Rd4 {[%clk 0:00:22]}  Kb6 {[%clk 0:00:14]} 53. Rd2 {[%clk 0:00:23]}  Ka5 {[%clk 0:00:13]} 54. Rb2 {[%clk 0:00:24]}  b4 {[%clk 0:00:14]} 55. Rd2 {[%clk 0:00:23]}  b3 {[%clk 0:00:14]} 56. Rd1 {[%clk 0:00:23]}  Kb4 {[%clk 0:00:13]} 57. Rd4+ {[%clk 0:00:23]}  Bc4 {[%clk 0:00:13]} 58. Bxc4 {[%clk 0:00:22]}  Rxc4 {[%clk 0:00:13]} 59. Rd7 {[%clk 0:00:23]}  b5 {[%clk 0:00:14]} 60. Rd2 {[%clk 0:00:22]}  Kc3 {[%clk 0:00:13]} 0-1


[Site "https://www.chess.com"]

[Event "Titled Tuesday Blitz November 07 Early 2023"]
[White "spiritof_stlouis"]
[Black "Kazakouski, Valery"]
[BlackFideId "13507443"]
[WhiteElo "2593"]
[BlackElo "2876"]
[Result "0-1"]
[Round "2"]
[TimeControl "180+1"]
[Date "2023.11.07"]
[WhiteClock "0:00:06"]
[BlackClock "0:00:05"]
[Board "38"]

1. Nf3 {[%clk 0:03:00]}  d5 {[%clk 0:02:59]} 2. d4 {[%clk 0:03:00]}  c6 {[%clk 0:02:57]} 3. Bf4 {[%clk 0:03:00]}  Nf6 {[%clk 0:02:55]} 4. e3 {[%clk 0:03:00]}  Bg4 {[%clk 0:02:53]} 5. h3 {[%clk 0:02:59]}  Bh5 {[%clk 0:02:53]} 6. Bd3 {[%clk 0:02:59]}  e6 {[%clk 0:02:51]} 7. O-O {[%clk 0:02:59]}  Nbd7 {[%clk 0:02:51]} 8. Nbd2 {[%clk 0:02:58]}  Be7 {[%clk 0:02:48]} 9. Qe2 {[%clk 0:02:56]}  O-O {[%clk 0:02:47]} 10. g4 {[%clk 0:02:46]}  Bg6 {[%clk 0:02:46]} 11. c3 {[%clk 0:02:43]}  c5 {[%clk 0:02:40]} 12. Rfe1 {[%clk 0:02:41]}  Qb6 {[%clk 0:02:35]} 13. Rab1 {[%clk 0:02:36]}  Ne4 {[%clk 0:02:29]} 14. Kg2 {[%clk 0:02:00]}  Rac8 {[%clk 0:02:17]} 15. Ne5 {[%clk 0:01:53]}  Nxe5 {[%clk 0:02:15]} 16. Bxe5 {[%clk 0:01:53]}  f6 {[%clk 0:02:05]} 17. Bf4 {[%clk 0:01:45]}  Rfe8 {[%clk 0:01:29]} 18. Nxe4 {[%clk 0:01:42]}  Bxe4+ {[%clk 0:01:21]} 19. Bxe4 {[%clk 0:01:42]}  dxe4 {[%clk 0:01:22]} 20. Red1 {[%clk 0:01:37]}  Qc6 {[%clk 0:01:18]} 21. Qc4 {[%clk 0:01:24]}  cxd4 {[%clk 0:01:00]} 22. Qxc6 {[%clk 0:01:22]}  Rxc6 {[%clk 0:01:01]} 23. exd4 {[%clk 0:01:21]}  Kf7 {[%clk 0:00:54]} 24. Kf1 {[%clk 0:01:18]}  Rd8 {[%clk 0:00:51]} 25. Ke2 {[%clk 0:01:18]}  g5 {[%clk 0:00:51]} 26. Bg3 {[%clk 0:01:05]}  f5 {[%clk 0:00:50]} 27. Be5 {[%clk 0:01:05]}  b5 {[%clk 0:00:50]} 28. f3 {[%clk 0:01:02]}  exf3+ {[%clk 0:00:47]} 29. Kxf3 {[%clk 0:01:02]}  Kg6 {[%clk 0:00:48]} 30. Rbc1 {[%clk 0:00:52]}  h5 {[%clk 0:00:46]} 31. gxh5+ {[%clk 0:00:51]}  Kxh5 {[%clk 0:00:47]} 32. b3 {[%clk 0:00:46]}  Rdc8 {[%clk 0:00:47]} 33. Rd3 {[%clk 0:00:46]}  Kg6 {[%clk 0:00:39]} 34. d5 {[%clk 0:00:45]}  exd5 {[%clk 0:00:34]} 35. Rxd5 {[%clk 0:00:46]}  a6 {[%clk 0:00:33]} 36. Bd4 {[%clk 0:00:38]}  Bf6 {[%clk 0:00:29]} 37. Bxf6 {[%clk 0:00:30]}  Kxf6 {[%clk 0:00:30]} 38. Rd3 {[%clk 0:00:29]}  Rh8 {[%clk 0:00:30]} 39. Kg2 {[%clk 0:00:28]}  Rhc8 {[%clk 0:00:28]} 40. Kf3 {[%clk 0:00:28]}  R8c7 {[%clk 0:00:25]} 41. Rc2 {[%clk 0:00:28]}  Rh7 {[%clk 0:00:19]} 42. Kg2 {[%clk 0:00:28]}  f4 {[%clk 0:00:19]} 43. Rcd2 {[%clk 0:00:27]}  Rhc7 {[%clk 0:00:18]} 44. Rd6+ {[%clk 0:00:25]}  Rxd6 {[%clk 0:00:10]} 45. Rxd6+ {[%clk 0:00:26]}  Kf5 {[%clk 0:00:11]} 46. Rxa6 {[%clk 0:00:22]}  Rxc3 {[%clk 0:00:11]} 47. Rb6 {[%clk 0:00:23]}  Rc2+ {[%clk 0:00:07]} 48. Kf3 {[%clk 0:00:23]}  Rc3+ {[%clk 0:00:04]} 49. Kg2 {[%clk 0:00:23]}  Rc5 {[%clk 0:00:05]} 50. a4 {[%clk 0:00:23]}  bxa4 {[%clk 0:00:06]} 51. bxa4 {[%clk 0:00:23]}  Rc2+ {[%clk 0:00:07]} 52. Kf3 {[%clk 0:00:23]}  Rc3+ {[%clk 0:00:08]} 53. Kg2 {[%clk 0:00:23]}  Ra3 {[%clk 0:00:09]} 54. Rb5+ {[%clk 0:00:22]}  Kg6 {[%clk 0:00:09]} 55. a5 {[%clk 0:00:22]}  Kh5 {[%clk 0:00:10]} 56. Rf5 {[%clk 0:00:21]}  Kh4 {[%clk 0:00:09]} 57. Rb5 {[%clk 0:00:20]}  Ra2+ {[%clk 0:00:09]} 58. Kf3 {[%clk 0:00:19]}  Ra3+ {[%clk 0:00:09]} 59. Kg2 {[%clk 0:00:20]}  Rg3+ {[%clk 0:00:09]} 60. Kf2 {[%clk 0:00:20]}  Kxh3 {[%clk 0:00:08]} 61. a6 {[%clk 0:00:19]}  Rg2+ {[%clk 0:00:05]} 62. Kf3 {[%clk 0:00:19]}  g4+ {[%clk 0:00:05]} 63. Kxf4 {[%clk 0:00:19]}  Rf2+ {[%clk 0:00:05]} 64. Ke3 {[%clk 0:00:19]}  Ra2 {[%clk 0:00:05]} 65. Rh5+ {[%clk 0:00:10]}  Kg3 {[%clk 0:00:05]} 66. Rh6 {[%clk 0:00:10]}  Ra3+ {[%clk 0:00:05]} 67. Ke2 {[%clk 0:00:11]}  Kg2 {[%clk 0:00:05]} 68. Rg6 {[%clk 0:00:10]}  g3 {[%clk 0:00:05]} 69. Ke1 {[%clk 0:00:11]}  Ra2 {[%clk 0:00:05]} 70. Rg7 {[%clk 0:00:10]}  Rxa6 {[%clk 0:00:04]} 71. Rg5 {[%clk 0:00:10]}  Re6+ {[%clk 0:00:04]} 72. Kd1 {[%clk 0:00:06]}  Kf2 {[%clk 0:00:05]} 0-1


[Site "https://www.chess.com"]

[Event "Titled Tuesday Blitz November 07 Early 2023"]
[White "Taher, Yoseph Theolifus"]
[Black "GatoRojo150"]
[WhiteFideId "7105347"]
[WhiteElo "2872"]
[BlackElo "2589"]
[Result "1-0"]
[Round "2"]
[TimeControl "180+1"]
[Date "2023.11.07"]
[WhiteClock "0:00:29"]
[BlackClock "0:00:00"]
[Board "39"]

1. e4 {[%clk 0:03:00]}  e5 {[%clk 0:03:00]} 2. Nf3 {[%clk 0:02:58]}  Nc6 {[%clk 0:03:00]} 3. Bb5 {[%clk 0:02:57]}  a6 {[%clk 0:03:00]} 4. Ba4 {[%clk 0:02:58]}  d6 {[%clk 0:03:00]} 5. d4 {[%clk 0:02:57]}  b5 {[%clk 0:03:00]} 6. Bb3 {[%clk 0:02:56]}  Nxd4 {[%clk 0:03:00]} 7. Nxd4 {[%clk 0:02:56]}  exd4 {[%clk 0:03:01]} 8. c3 {[%clk 0:02:57]}  dxc3 {[%clk 0:03:01]} 9. Nxc3 {[%clk 0:02:56]}  Nf6 {[%clk 0:03:00]} 10. Bg5 {[%clk 0:02:56]}  Be7 {[%clk 0:03:00]} 11. Bxf6 {[%clk 0:02:56]}  Bxf6 {[%clk 0:03:00]} 12. O-O {[%clk 0:02:54]}  O-O {[%clk 0:03:00]} 13. Rc1 {[%clk 0:02:53]}  c5 {[%clk 0:02:56]} 14. Qd2 {[%clk 0:02:51]}  c4 {[%clk 0:02:46]} 15. Bc2 {[%clk 0:02:51]}  Bb7 {[%clk 0:02:46]} 16. Rce1 {[%clk 0:02:50]}  Re8 {[%clk 0:02:40]} 17. Kh1 {[%clk 0:02:49]}  Qb6 {[%clk 0:02:33]} 18. a3 {[%clk 0:02:49]}  Qd4 {[%clk 0:02:31]} 19. Qe2 {[%clk 0:02:48]}  d5 {[%clk 0:02:25]} 20. Qf3 {[%clk 0:02:44]}  dxe4 {[%clk 0:02:24]} 21. Bxe4 {[%clk 0:02:43]}  Bxe4 {[%clk 0:02:22]} 22. Nxe4 {[%clk 0:02:43]}  Qxb2 {[%clk 0:02:20]} 23. Re2 {[%clk 0:02:42]}  Qd4 {[%clk 0:02:14]} 24. Rfe1 {[%clk 0:02:42]}  Rec8 {[%clk 0:01:54]} 25. Nxf6+ {[%clk 0:02:41]}  gxf6 {[%clk 0:01:43]} 26. Re4 {[%clk 0:02:39]}  Qd6 {[%clk 0:01:33]} 27. Rd1 {[%clk 0:01:50]}  Qc6 {[%clk 0:01:24]} 28. Qf5 {[%clk 0:01:44]}  Rd8 {[%clk 0:01:00]} 29. Rde1 {[%clk 0:01:37]}  Rd5 {[%clk 0:00:52]} 30. Rg4+ {[%clk 0:01:26]}  Kh8 {[%clk 0:00:50]} 31. Qf3 {[%clk 0:01:25]}  Rc5 {[%clk 0:00:31]} 32. Qf4 {[%clk 0:01:16]}  Rg8 {[%clk 0:00:19]} 33. Rxg8+ {[%clk 0:01:05]}  Kxg8 {[%clk 0:00:20]} 34. h4 {[%clk 0:01:02]}  Re5 {[%clk 0:00:19]} 35. Rd1 {[%clk 0:01:02]}  Re8 {[%clk 0:00:16]} 36. Rd6 {[%clk 0:01:00]}  Qe4 {[%clk 0:00:14]} 37. Qxf6 {[%clk 0:01:00]}  Qe1+ {[%clk 0:00:14]} 38. Kh2 {[%clk 0:00:59]}  Qe5+ {[%clk 0:00:15]} 39. Qxe5 {[%clk 0:01:00]}  Rxe5 {[%clk 0:00:15]} 40. Rxa6 {[%clk 0:01:00]}  Rc5 {[%clk 0:00:15]} 41. Rd6 {[%clk 0:01:00]}  c3 {[%clk 0:00:15]} 42. Rd1 {[%clk 0:01:00]}  f5 {[%clk 0:00:14]} 43. Kg3 {[%clk 0:01:00]}  Rc4 {[%clk 0:00:13]} 44. Rc1 {[%clk 0:00:58]}  Kf7 {[%clk 0:00:14]} 45. Kf3 {[%clk 0:00:58]}  Ke6 {[%clk 0:00:15]} 46. Ke3 {[%clk 0:00:58]}  c2 {[%clk 0:00:13]} 47. Kd3 {[%clk 0:00:57]}  Rxh4 {[%clk 0:00:13]} 48. Rxc2 {[%clk 0:00:57]}  Ra4 {[%clk 0:00:13]} 49. Rc3 {[%clk 0:00:55]}  Kd5 {[%clk 0:00:14]} 50. Rb3 {[%clk 0:00:54]}  Kc5 {[%clk 0:00:12]} 51. Ke3 {[%clk 0:00:54]}  Rc4 {[%clk 0:00:10]} 52. Kf3 {[%clk 0:00:50]}  Ra4 {[%clk 0:00:09]} 53. g3 {[%clk 0:00:47]}  Kc4 {[%clk 0:00:09]} 54. Re3 {[%clk 0:00:47]}  Kc5 {[%clk 0:00:09]} 55. Re5+ {[%clk 0:00:44]}  Kc6 {[%clk 0:00:08]} 56. Re3 {[%clk 0:00:44]}  Kd5 {[%clk 0:00:08]} 57. Kg2 {[%clk 0:00:38]}  h6 {[%clk 0:00:07]} 58. Rf3 {[%clk 0:00:38]}  Ke5 {[%clk 0:00:07]} 59. Rb3 {[%clk 0:00:38]}  Kf6 {[%clk 0:00:07]} 60. Kf3 {[%clk 0:00:37]}  Kg5 {[%clk 0:00:06]} 61. Ke2 {[%clk 0:00:35]}  h5 {[%clk 0:00:06]} 62. Rf3 {[%clk 0:00:32]}  b4 {[%clk 0:00:05]} 63. axb4 {[%clk 0:00:29]}  Rxb4 {[%clk 0:00:06]} 64. Ra3 {[%clk 0:00:29]}  Rc4 {[%clk 0:00:06]} 65. Ra8 {[%clk 0:00:28]}  Rc2+ {[%clk 0:00:05]} 66. Kf3 {[%clk 0:00:28]}  Rc3+ {[%clk 0:00:06]} 67. Kg2 {[%clk 0:00:29]}  Rb3 {[%clk 0:00:06]} 68. Rg8+ {[%clk 0:00:29]}  Kf6 {[%clk 0:00:06]} 69. f4 {[%clk 0:00:27]}  Rb2+ {[%clk 0:00:05]} 70. Kh3 {[%clk 0:00:28]}  Rb1 {[%clk 0:00:06]} 71. Rg5 {[%clk 0:00:26]}  Rh1+ {[%clk 0:00:05]} 72. Kg2 {[%clk 0:00:26]}  Rb1 {[%clk 0:00:04]} 73. Rxh5 {[%clk 0:00:27]}  Rb2+ {[%clk 0:00:05]} 74. Kh3 {[%clk 0:00:28]}  Rb1 {[%clk 0:00:06]} 75. Rh6+ {[%clk 0:00:28]}  Kg7 {[%clk 0:00:05]} 76. Ra6 {[%clk 0:00:29]}  Rh1+ {[%clk 0:00:04]} 77. Kg2 {[%clk 0:00:29]}  Rb1 {[%clk 0:00:05]} 78. Kh2 {[%clk 0:00:30]}  Rb2+ {[%clk 0:00:05]} 79. Kh3 {[%clk 0:00:30]}  Rb1 {[%clk 0:00:06]} 80. Kh4 {[%clk 0:00:31]}  Rb5 {[%clk 0:00:04]} 81. Kg5 {[%clk 0:00:31]}  Rb3 {[%clk 0:00:02]} 82. Kh4 {[%clk 0:00:30]}  Rb1 {[%clk 0:00:00]} 83. Rc6 {[%clk 0:00:29]} 1-0


[Site "https://www.chess.com"]

[Event "Titled Tuesday Blitz November 07 Early 2023"]
[White "Sturt, Raven"]
[Black "Nenezic, Marko"]
[WhiteFideId "2007304"]
[BlackFideId "912123"]
[WhiteElo "2583"]
[BlackElo "2866"]
[Result "1-0"]
[Round "2"]
[TimeControl "180+1"]
[Date "2023.11.07"]
[WhiteClock "0:00:07"]
[BlackClock "0:00:04"]
[Board "42"]

1. f4 {[%clk 0:03:00]}  d5 {[%clk 0:02:58]} 2. Nf3 {[%clk 0:02:55]}  Nh6 {[%clk 0:02:58]} 3. b3 {[%clk 0:02:38]}  c5 {[%clk 0:02:55]} 4. Bb2 {[%clk 0:02:38]}  Nc6 {[%clk 0:02:55]} 5. e3 {[%clk 0:02:38]}  a6 {[%clk 0:02:56]} 6. Rg1 {[%clk 0:02:13]}  d4 {[%clk 0:02:24]} 7. e4 {[%clk 0:02:08]}  Ng4 {[%clk 0:02:23]} 8. h3 {[%clk 0:01:52]}  Nf6 {[%clk 0:02:23]} 9. d3 {[%clk 0:01:53]}  e5 {[%clk 0:02:09]} 10. fxe5 {[%clk 0:01:28]}  Nh5 {[%clk 0:02:00]} 11. Nbd2 {[%clk 0:01:10]}  Nf4 {[%clk 0:01:51]} 12. Nc4 {[%clk 0:01:08]}  b5 {[%clk 0:01:48]} 13. Qd2 {[%clk 0:01:05]}  bxc4 {[%clk 0:01:32]} 14. Qxf4 {[%clk 0:01:05]}  c3 {[%clk 0:01:32]} 15. Bc1 {[%clk 0:01:03]}  Nb4 {[%clk 0:01:25]} 16. Kd1 {[%clk 0:00:56]}  Be7 {[%clk 0:01:25]} 17. g4 {[%clk 0:00:54]}  O-O {[%clk 0:01:20]} 18. g5 {[%clk 0:00:53]}  a5 {[%clk 0:01:20]} 19. a3 {[%clk 0:00:46]}  Nc6 {[%clk 0:01:18]} 20. a4 {[%clk 0:00:47]}  Be6 {[%clk 0:01:15]} 21. Nh4 {[%clk 0:00:45]}  Nb4 {[%clk 0:01:13]} 22. Nf5 {[%clk 0:00:43]}  Rb8 {[%clk 0:01:01]} 23. Rb1 {[%clk 0:00:40]}  Kh8 {[%clk 0:00:56]} 24. Rg2 {[%clk 0:00:39]}  Re8 {[%clk 0:00:53]} 25. h4 {[%clk 0:00:39]}  c4 {[%clk 0:00:39]} 26. bxc4 {[%clk 0:00:33]}  Nc6 {[%clk 0:00:33]} 27. Rb5 {[%clk 0:00:32]}  Bb4 {[%clk 0:00:28]} 28. h5 {[%clk 0:00:27]}  Rc8 {[%clk 0:00:19]} 29. g6 {[%clk 0:00:27]}  Bxf5 {[%clk 0:00:07]} 30. Qxf5 {[%clk 0:00:22]}  fxg6 {[%clk 0:00:06]} 31. hxg6 {[%clk 0:00:22]}  Rf8 {[%clk 0:00:07]} 32. Qh3 {[%clk 0:00:13]}  Rxf1+ {[%clk 0:00:06]} 33. Ke2 {[%clk 0:00:13]}  Qg8 {[%clk 0:00:04]} 34. Kxf1 {[%clk 0:00:07]} 1-0


[Site "https://www.chess.com"]

[Event "Titled Tuesday Blitz November 07 Early 2023"]
[White "Subelj, Jan"]
[Black "Sydoryka, Vladyslav"]
[WhiteFideId "14618583"]
[BlackFideId "14145928"]
[WhiteElo "2864"]
[BlackElo "2582"]
[Result "1-0"]
[Round "2"]
[TimeControl "180+1"]
[Date "2023.11.07"]
[WhiteClock "0:01:29"]
[BlackClock "0:00:02"]
[Board "43"]

1. Nf3 {[%clk 0:03:00]}  d5 {[%clk 0:02:54]} 2. e3 {[%clk 0:03:01]}  c5 {[%clk 0:02:54]} 3. Bb5+ {[%clk 0:02:57]}  Bd7 {[%clk 0:02:54]} 4. Qe2 {[%clk 0:02:50]}  a6 {[%clk 0:02:51]} 5. Bxd7+ {[%clk 0:02:48]}  Qxd7 {[%clk 0:02:52]} 6. b3 {[%clk 0:02:45]}  Nc6 {[%clk 0:02:45]} 7. Bb2 {[%clk 0:02:45]}  Nf6 {[%clk 0:02:46]} 8. O-O {[%clk 0:02:43]}  e6 {[%clk 0:02:46]} 9. c4 {[%clk 0:02:36]}  d4 {[%clk 0:02:26]} 10. exd4 {[%clk 0:02:37]}  cxd4 {[%clk 0:02:26]} 11. Ne5 {[%clk 0:02:31]}  Nxe5 {[%clk 0:02:18]} 12. Qxe5 {[%clk 0:02:32]}  Rd8 {[%clk 0:02:17]} 13. d3 {[%clk 0:02:32]}  Be7 {[%clk 0:02:08]} 14. Nd2 {[%clk 0:02:30]}  Bd6 {[%clk 0:01:50]} 15. Qe2 {[%clk 0:02:26]}  O-O {[%clk 0:01:47]} 16. Nf3 {[%clk 0:02:25]}  Bc5 {[%clk 0:01:34]} 17. Qe5 {[%clk 0:02:25]}  Qd6 {[%clk 0:01:28]} 18. Rfe1 {[%clk 0:02:20]}  Rfe8 {[%clk 0:01:01]} 19. Qxd6 {[%clk 0:02:10]}  Rxd6 {[%clk 0:01:01]} 20. a3 {[%clk 0:02:10]}  a5 {[%clk 0:00:56]} 21. Rab1 {[%clk 0:01:47]}  Nd7 {[%clk 0:00:43]} 22. Nd2 {[%clk 0:01:43]}  f5 {[%clk 0:00:19]} 23. Bc1 {[%clk 0:01:43]}  e5 {[%clk 0:00:18]} 24. b4 {[%clk 0:01:42]}  axb4 {[%clk 0:00:19]} 25. axb4 {[%clk 0:01:43]}  Ba7 {[%clk 0:00:20]} 26. c5 {[%clk 0:01:42]}  Rde6 {[%clk 0:00:18]} 27. Bb2 {[%clk 0:01:42]}  Nf6 {[%clk 0:00:12]} 28. Nc4 {[%clk 0:01:41]}  Nd5 {[%clk 0:00:13]} 29. Nd6 {[%clk 0:01:36]}  R8e7 {[%clk 0:00:12]} 30. Nxf5 {[%clk 0:01:36]}  Rd7 {[%clk 0:00:07]} 31. Nxd4 {[%clk 0:01:35]}  Re8 {[%clk 0:00:06]} 32. Nf3 {[%clk 0:01:35]}  Nxb4 {[%clk 0:00:05]} 33. Nxe5 {[%clk 0:01:35]}  Rde7 {[%clk 0:00:04]} 34. d4 {[%clk 0:01:34]}  Nc2 {[%clk 0:00:02]} 35. Rec1 {[%clk 0:01:32]}  Nb4 {[%clk 0:00:01]} 36. Ba1 {[%clk 0:01:29]}  Bb8 {[%clk 0:00:02]} 1-0


[Site "https://www.chess.com"]